fUSD/lending_fUSD_20260107
["ID","MTS","AMOUNT","RATE_DAILY","PERIOD"]
[400717072,1767790905885,524.2180077,0.00015598,2]
[400717073,1767790907798,153.60252177,0.00015598,2]
[400717074,1767790919169,500.0,0.00015598,2]
[400717075,1767790919351,500.0,0.00015598,2]
[400717076,1767790929381,200.0,0.00015599,2]
[400717077,1767790936664,200.0,0.00015599,2]
[400717078,1767790941326,500.0,0.00015599,2]
[400717079,1767790950976,151.0,0.00015599,2]
[400717080,1767790951935,151.0,0.00015599,2]
[400717081,1767790981943,300.0,0.00015598,2]
[400717082,1767791037343,1226.56412382,0.00015499,2]
[400717083,1767791044758,505.18471949,0.00015499,2]
[400717084,1767791044781,10000.01,0.00015499,2]
[400717085,1767791044803,10000.01,0.00015499,2]
[400717086,1767791044827,10000.01,0.00015499,2]
[400717087,1767791044851,10000.01,0.00015499,2]
[400717088,1767791044872,1272.69858051,0.00015499,2]
[400717090,1767791090775,422.0,0.00032876,120]
[400717091,1767791101391,300.0,0.00015598,2]
[400717092,1767791101541,1200.0,0.00015598,2]
[400717093,1767791101800,300.0,0.00015598,2]
[400717094,1767791129719,6927.31141949,0.00015499,2]
[400717095,1767791129743,513.97378051,0.00015499,2]
[400717096,1767791161278,300.0,0.00015598,2]
[400717097,1767791162039,300.0,0.00015598,2]
[400717098,1767791171176,8886.03621949,0.00015589,2]
[400717099,1767791171200,10000.01,0.00015589,2]
[400717100,1767791171223,1079.79453533,0.00015589,2]
[400717101,1767791187264,4108.7785,0.00015499,2]
[400717102,1767791193842,4811.43696467,0.00015499,2]
[400717103,1767791193867,6516.02003533,0.00015499,2]
[400717104,1767791199928,393.4129,0.00015499,2]
[400717105,1767791239681,500.0,0.00015599,2]
[400717106,1767791242273,776.6986,0.00015499,2]
[400717107,1767791247711,151.0,0.00015599,2]
[400717108,1767791248399,151.0,0.00015599,2]
[400717109,1767791249502,151.0,0.00015599,2]
[400717110,1767791249906,151.0,0.00015599,2]
[400717111,1767791250667,151.0,0.00015599,2]
[400717112,1767791251156,151.0,0.00015599,2]
[400717113,1767791252403,151.0,0.00015599,2]
[400717114,1767791252981,151.0,0.00015599,2]
[400717115,1767791253518,151.0,0.00015599,2]
[400717116,1767791287765,-4029.13770192,0.00015499,2]
[400717117,1767791290672,-1941.73459616,0.00015499,2]
[400717118,1767791324117,1228.985364,0.00015499,2]
[400717119,1767791351448,8038.83,0.00032877,120]
[400717120,1767791368484,-300.0,0.00015598,2]
[400717121,1767791384482,-811785.69499277,0.00015599,2]
[400717122,1767791384505,-1000.0,0.00015599,2]
[400717123,1767791384529,-280.0,0.00015599,2]
[400717124,1767791384551,-151.0,0.00015599,2]
[400717125,1767791384578,-151.0,0.00015599,2]
[400717126,1767791384601,-164.43134532,0.00015653,2]
[400717127,1767791384625,-200.0,0.00015664,2]
[400717128,1767791384649,-234.22420722,0.00015698,2]
[400717129,1767791384672,-500.0,0.00015699,2]
[400717130,1767791384694,-200.0,0.00015714,2]
[400717131,1767791384717,-999.0,0.00015735,3]
[400717132,1767791384739,-500.0,0.00015799,2]
[400717133,1767791384761,-500.0,0.00015799,2]
[400717134,1767791384784,-500.0,0.00015799,2]
[400717135,1767791384806,-500.0,0.00015799,2]
[400717136,1767791384827,-500.0,0.00015799,2]
[400717137,1767791384849,-500.0,0.00015799,2]
[400717138,1767791384875,-500.0,0.00015799,2]
[400717139,1767791384897,-500.0,0.00015799,2]
[400717140,1767791384920,-500.0,0.00015799,2]
[400717141,1767791384944,-500.0,0.00015799,2]
[400717142,1767791384966,-500.0,0.00015799,2]
[400717143,1767791384988,-314.03395353,0.00015799,2]
[400717144,1767791385011,-500.0,0.00015799,2]
[400717145,1767791385032,-2521.94,0.00015799,2]
[400717146,1767791385054,-150.99,0.00015799,2]
[400717147,1767791385075,-999.99,0.00015799,2]
[400717148,1767791385096,-1334.54,0.00015799,2]
[400717149,1767791385121,-500.0,0.00015799,2]
[400717150,1767791385143,-500.0,0.00015799,2]
[400717151,1767791385165,-500.0,0.00015799,2]
[400717152,1767791385186,-500.0,0.00015889,2]
[400717153,1767791385208,-500.0,0.00015889,2]
[400717154,1767791385585,-9999.99,0.00015889,2]
[400717155,1767791385612,-500.0,0.00015889,2]
[400717156,1767791385635,-2904.63,0.00015905,2]
[400717157,1767791385658,-150.99,0.00015905,2]
[400717158,1767791385681,-9999.99,0.00015905,2]
[400717159,1767791385703,-299.99,0.00015905,2]
[400717160,1767791385725,-9999.99,0.00015905,2]
[400717161,1767791385746,-7097.53,0.00015905,2]
[400717162,1767791385768,-11998.18,0.00015979,2]
[400717163,1767791385790,-10038.44,0.00015995,2]
[400717164,1767791385811,-1000.0,0.00015999,2]
[400717165,1767791403501,922.0,0.00016,2]
[400717173,1767791431595,-827.08473548,0.00016001,2]
[400717174,1767791431671,-6141.49526452,0.00016001,2]
[400717175,1767791431681,-150.0,0.00016055,2]
[400717176,1767791431690,-1334.54,0.00016073,2]
[400717177,1767791431700,-223.80137877,0.00016104,2]
[400717178,1767791431710,-500.0,0.00016147,2]
[400717179,1767791431719,-594.91219362,0.0001625,2]
[400717180,1767791431731,-605.08780638,0.0001625,2]
[400717181,1767791431741,-180.08,0.00016251,2]
[400717182,1767791431750,-1001.76,0.00016251,2]
[400717183,1767791431760,-500.0,0.00016276,2]
[400717184,1767791431769,-103.02147884,0.00016347,2]
[400717186,1767791431801,-482.13,0.00016347,2]
[400717188,1767791431813,-540.54142778,0.00016347,2]
[400717190,1767791431824,-208.84709338,0.00016347,2]
[400717192,1767791431833,-300.0,0.00016437,2]
[400717194,1767791431843,-500.0,0.00016438,2]
[400717196,1767791431852,-500.0,0.00016438,2]
[400717198,1767791431861,-500.0,0.00016438,2]
[400717200,1767791431871,-500.0,0.00016438,2]
[400717202,1767791431880,-500.0,0.00016438,2]
[400717204,1767791431893,-500.0,0.00016438,2]
[400717206,1767791431903,-445.95090662,0.00016438,2]
[400717209,1767791431915,-54.04909338,0.00016438,2]
[400717211,1767791431924,-500.0,0.00016438,2]
[400717213,1767791431935,-82.26942791,0.00016438,2]
[400717215,1767791431947,-417.73057209,0.00016438,2]
[400717216,1767791431958,-30.81144222,0.00016438,2]
[400717217,1767791432013,-469.18855778,0.00016438,2]
[400717218,1767791432022,-69.21000309,0.00016438,2]
[400717219,1767791432034,-430.78999691,0.00016438,2]
[400717220,1767791432043,-500.0,0.00016438,2]
[400717221,1767791432053,-378.89764675,0.00016438,2]
[400717222,1767791432119,-121.10235325,0.00016438,2]
[400717223,1767791432130,-500.0,0.00016438,2]
[400717224,1767791432140,-166.17658597,0.00016438,2]
[400717357,1767791439232,-333.82341403,0.00016438,2]
[400717359,1767791439242,-500.0,0.00016438,2]
[400717361,1767791439251,-500.0,0.00016438,2]
[400717363,1767791439261,-500.0,0.00016438,2]
[400717365,1767791439272,-500.0,0.00016438,2]
[400717367,1767791439282,-500.0,0.00016438,2]
[400717369,1767791439292,-500.0,0.00016438,2]
[400717371,1767791439301,-500.0,0.00016438,2]
[400717373,1767791439313,-500.0,0.00016438,2]
[400717375,1767791439322,-500.0,0.00016438,2]
[400717377,1767791439332,-500.0,0.00016438,2]
[400717379,1767791439342,-500.0,0.00016438,2]
[400717381,1767791439352,-138.86364431,0.00016438,2]
[400717388,1767791439384,-361.13635569,0.00016438,2]
[400717392,1767791439394,-500.0,0.00016438,2]
[400717395,1767791439404,-500.0,0.00016438,2]
[400717398,1767791439413,-500.0,0.00016438,2]
[400717400,1767791439423,-246.84428382,0.00016438,2]
[400717402,1767791439432,-70.02008382,0.00016438,2]
[400717404,1767791439443,-429.97991618,0.00016438,2]
[400717406,1767791439452,-240.12008403,0.00016438,2]
[400717423,1767791439594,-259.87991597,0.00016438,2]
[400717425,1767791439603,-183.38545009,0.00016438,2]
[400717428,1767791439621,-316.61454991,0.00016438,2]
[400717430,1767791439631,-75.98008403,0.00016438,2]
[400717527,1767791440562,-424.01991597,0.00016438,2]
[400717529,1767791440571,-68.50572903,0.00016438,2]
[400717533,1767791440592,-431.49427097,0.00016438,2]
[400717535,1767791440602,-500.0,0.00016438,2]
[400717537,1767791440611,-500.0,0.00016438,2]
[400717539,1767791440620,-500.0,0.00016438,2]
[400717541,1767791440629,-500.0,0.00016438,2]
[400717543,1767791440637,-500.0,0.00016438,2]
[400717545,1767791440646,-567.12541952,0.00016438,2]
[400717546,1767791440655,-567.12541952,0.00016438,2]
[400717548,1767791440666,-567.12541952,0.00016438,2]
[400717550,1767791440675,-567.12541952,0.00016438,2]
[400717553,1767791440684,-567.12541952,0.00016438,2]
[400717554,1767791440694,-567.12541952,0.00016438,2]
[400717556,1767791440703,-567.12541952,0.00016438,2]
[400717559,1767791440712,-567.12541952,0.00016438,2]
[400717560,1767791440722,-567.12541952,0.00016438,2]
[400717562,1767791440731,-567.12541952,0.00016438,2]
[400717564,1767791440740,-567.12541952,0.00016438,2]
[400717566,1767791440749,-567.12541952,0.00016438,2]
[400717568,1767791440758,-567.12541952,0.00016438,2]
[400717571,1767791440768,-567.12541952,0.00016438,2]
[400717572,1767791440777,-567.12541952,0.00016438,2]
[400717574,1767791440786,-567.12541952,0.00016438,2]
[400717576,1767791440795,-567.12541952,0.00016438,2]
[400717578,1767791440803,-567.12541952,0.00016438,2]
[400717580,1767791440813,-567.12541952,0.00016438,2]
[400717582,1767791440822,-1334.54,0.00016621,2]
[400717584,1767791440831,-1000.0,0.00016679,2]
[400717586,1767791440840,-180.08,0.0001669,2]
[400717588,1767791440849,-524.59971564,0.00016695,2]
[400717590,1767791440857,-2904.63,0.000167,2]
[400717592,1767791440867,-464.0,0.00016721,2]
[400717594,1767791440876,-500.0,0.00016767,2]
[400717596,1767791440889,-500.0,0.00016767,2]
[400717598,1767791440898,-151.0,0.00016816,2]
[400717600,1767791440909,-151.0,0.00016816,2]
[400717602,1767791440918,-151.0,0.00016833,2]
[400717604,1767791440928,-151.0,0.00016833,2]
[400717606,1767791440937,-151.58,0.00016833,2]
[400717608,1767791440946,-1118.99329856,0.00016895,2]
[400717610,1767791440959,-215.54670144,0.00016895,2]
[400717612,1767791440968,-250.0,0.00017,2]
[400717614,1767791440977,-151.0,0.0001703,2]
[400717616,1767791440986,-151.0,0.0001703,2]
[400717618,1767791440995,-459.9152418,0.00017033,2]
[400717620,1767791441005,-2588.80390764,0.00017033,2]
[400717622,1767791441016,-452.67489771,0.00017033,2]
[400717624,1767791441027,-360.11324534,0.00017033,2]
[400717626,1767791441037,-471.13398646,0.00017033,2]
[400717628,1767791441048,-3030.275,0.00017033,2]
[400717630,1767791441060,-303.94,0.00017033,2]
[400717785,1767791443373,9700.0,0.00015499,2]
[400717786,1767791443402,4887.55544368,0.00015499,2]
[400717787,1767791443428,10000.01,0.00015499,2]
[400717788,1767791443454,10000.01,0.00015499,2]
[400717789,1767791443479,10000.01,0.00015499,2]
[400717790,1767791443504,10000.01,0.00015499,2]
[400717791,1767791443529,10000.01,0.00015499,2]
[400717792,1767791443554,10000.01,0.00015499,2]
[400717793,1767791443578,10000.01,0.00015499,2]
[400717794,1767791443603,10000.01,0.00015499,2]
[400717795,1767791443627,10000.01,0.00015499,2]
[400717798,1767791444238,-13851.02829593,0.00015499,2]
[400717799,1767791444250,-3013.09883196,0.00015499,2]
[400717800,1767791444261,-391047.95717787,0.00015499,2]
[400717809,1767791444464,-4524.04644682,0.00015499,2]
[400717810,1767791444499,-447.1571751,0.00015499,2]
[400717811,1767791445206,-1378.65,0.00015499,2]
[400717812,1767791445292,-337445.26062232,0.00015499,2]
[400717813,1767791445303,-143705.15600632,0.00015499,2]
[400717814,1767791445312,-1509.74881489,0.00017033,2]
[400717815,1767791445327,-908.811586,0.00017033,2]
[400717816,1767791445338,-473.28796196,0.00017033,2]
[400717817,1767791445348,-600.0,0.00017049,2]
[400717818,1767791445357,-250.0,0.00017049,2]
[400717820,1767791445367,-500.0,0.00017132,2]
[400717821,1767791445376,-150.0,0.00017133,2]
[400717822,1767791445385,-600.0,0.00017158,2]
[400717823,1767791445395,-600.0,0.00017158,2]
[400717824,1767791445404,-600.0,0.00017158,2]
[400717825,1767791445413,-250.0,0.00017158,2]
[400717827,1767791445423,-600.0,0.00017159,2]
[400717829,1767791445432,-1334.54,0.00017169,2]
[400717831,1767791445441,-305.97,0.00017174,2]
[400717832,1767791445451,-500.0,0.0001741,2]
[400717833,1767791445460,-1334.54,0.00017443,2]
[400717834,1767791445469,-2904.63,0.00017495,2]
[400717835,1767791445478,-1000.0,0.000175,2]
[400717836,1767791445489,-500.0,0.00017594,2]
[400717837,1767791445498,-500.0,0.00017594,2]
[400717838,1767791445507,-632.9385196,0.00017594,2]
[400717839,1767791445516,-500.0,0.00017594,2]
[400717840,1767791445525,-500.0,0.00017594,2]
[400717841,1767791445534,-500.0,0.00017594,2]
[400717842,1767791445543,-500.0,0.00017594,2]
[400717843,1767791445553,-256.01043912,0.00017594,2]
[400717844,1767791445562,-500.0,0.00017594,2]
[400717845,1767791445571,-500.0,0.00017594,2]
[400717846,1767791445580,-500.0,0.00017594,2]
[400717847,1767791445589,-500.0,0.00017594,2]
[400717848,1767791445598,-500.0,0.00017594,2]
[400717849,1767791445607,-500.0,0.00017594,2]
[400717850,1767791445616,-500.0,0.00017594,2]
[400717851,1767791445625,-646.42152045,0.00017594,2]
[400717852,1767791445634,-500.0,0.00017594,2]
[400717853,1767791445644,-500.0,0.00017594,2]
[400717854,1767791445653,-500.0,0.00017594,2]
[400717855,1767791445662,-500.0,0.00017594,2]
[400717856,1767791445672,-500.0,0.00017594,2]
[400717857,1767791445682,-500.0,0.00017594,2]
[400717858,1767791445692,-500.0,0.00017594,2]
[400717859,1767791445701,-500.0,0.00017594,2]
[400717860,1767791445710,-500.0,0.00017594,2]
[400717861,1767791445719,-500.0,0.00017594,2]
[400717862,1767791445728,-500.0,0.00017594,2]
[400717863,1767791445737,-500.0,0.00017594,2]
[400717864,1767791445746,-367.99147805,0.00017594,2]
[400717865,1767791445756,-250.0,0.00017601,2]
[400717866,1767791445766,-2500.0,0.00017601,2]
[400717867,1767791445775,-163.91088797,0.00017611,2]
[400717868,1767791445784,-5970.87229807,0.00017654,2]
[400717869,1767791445794,-1334.54,0.00017717,2]
[400717870,1767791445803,-271.7085003,0.0001783,2]
[400717871,1767791445813,-1680.0,0.00017851,2]
[400717872,1767791445822,-300.0,0.00017871,2]
[400717873,1767791445831,-1202.90324973,0.000179,2]
[400717874,1767791445840,-3597.06146331,0.000179,2]
[400717875,1767791445849,-420.0,0.00017963,2]
[400717876,1767791445858,-2188.9248537,0.00017983,2]
[400717877,1767791445867,-1334.54,0.00017991,2]
[400717878,1767791445876,-19036.85793047,0.00017998,2]
[400717879,1767791445890,-7189.87866823,0.00017998,2]
[400717881,1767791446217,-300.0,0.00017999,2]
[400717882,1767791446227,-666.0,0.00017999,2]
[400717883,1767791446239,-300.0,0.00017999,2]
[400717885,1767791446248,-666.0,0.00017999,2]
[400717887,1767791446258,-16064.46097997,0.00018,2]
[400717888,1767791446269,-39684.89639591,0.00018,2]
[400717889,1767791446303,-6855.90067227,0.00018,2]
[400717890,1767791446455,-22018.36395871,0.00018,2]
[400717891,1767791446467,-459.58986104,0.00018,2]
[400717892,1767791446497,-2681.09432384,0.00018,2]
[400717893,1767791446509,-916.03121567,0.00018,2]
[400717894,1767791446553,-2169.16492796,0.00018,2]
[400717895,1767791446572,-1056.23227711,0.00018,2]
[400717896,1767791446584,-655.3938732,0.00018,2]
[400717897,1767791459318,1000.0,0.00015499,2]
[400717900,1767791752047,-300.00000017,0.00015598,2]
[400717901,1767791756577,-199.99999983,0.00015598,2]
[400717902,1767791756600,-300.02557699,0.00015598,2]
[400717903,1767791761191,-199.97442301,0.00015598,2]
[400717904,1767791761216,-43.55090323,0.00015598,2]
[400717905,1767791761291,1060.29606809,0.00032876,120]
[400717909,1767791901821,-240.47638426,0.00015598,2]
[400717911,1767792038512,-208.2668177,0.00015598,2]
[400717913,1767792130281,609.22,0.00032877,120]
[400717914,1767792156185,166.66,0.00015285,2]
[400717915,1767792170783,-151.29621885,0.0001552,2]
[400717916,1767792187946,-296.97286097,0.0001552,2]
[400717917,1767792189577,-300.0,0.0001552,2]
[400717918,1767792191769,-534.1597126,0.0001552,2]
[400717919,1767792194310,-167.55686369,0.0001552,2]
[400717920,1767792200095,-318.14903129,0.0001552,2]
[400717921,1767792204873,-300.0,0.0001552,2]
[400717922,1767792206595,-198.37055173,0.0001552,2]
[400717923,1767792209583,-193.8487697,0.0001552,2]
[400717924,1767792211449,-245.48180908,0.0001552,2]
[400717925,1767792213565,-294.78439273,0.0001552,2]
[400717926,1767792215169,-406.84505554,0.0001552,2]
[400717927,1767792220461,-164.03,0.0001552,2]
[400717928,1767792226999,1100.0,0.00015346,2]
[400717929,1767792231767,1100.0,0.00015346,2]
[400717930,1767792237207,1100.0,0.00015346,2]
[400717931,1767792263473,158.12778819,0.0003287,120]
[400717932,1767792374577,1497.59,0.00015491,2]
[400717933,1767792381165,11214.91256746,0.000328,120]
[400717963,1767792430913,1992.89435766,0.00032876,120]
[400717969,1767792469714,246.52,0.00015288,2]
[400717978,1767792517022,-212.8727741,0.00015558,2]
[400717980,1767792521823,-305.75969384,0.00015558,2]
[400717981,1767792525670,-300.0,0.00015558,2]
[400717982,1767792534213,539.43776376,0.00015085,2]
[400717990,1767792610382,1034.38,0.00015218,2]
[400718016,1767792632101,-1746.89554926,0.00015558,2]
[400718017,1767792632114,-280.0,0.00015558,2]
[400718018,1767792632126,-307.70589498,0.00015558,2]
[400718019,1767792632136,-195.0,0.00015558,2]
[400718020,1767792632146,-250.0,0.00015558,2]
[400718021,1767792632158,-500.0,0.00015598,2]
[400718022,1767792632170,-500.0,0.00015598,2]
[400718023,1767792632185,-500.0,0.00015598,2]
[400718024,1767792632196,-166.66,0.00015607,2]
[400718025,1767792632207,-280.34,0.00015768,2]
[400718026,1767792632218,-1200.0,0.00015806,2]
[400718027,1767792632229,-2045.30003102,0.00015807,2]
[400718028,1767792632239,-127142.22444211,0.00015809,2]
[400718030,1767792632339,-1148.78266955,0.00015809,2]
[400718033,1767792636324,10000.01,0.00015165,2]
[400718034,1767792636351,8120.11,0.00015165,2]
[400718109,1767792638886,-871708.99288834,0.00015809,2]
[400718111,1767792638896,-300.0,0.00015856,2]
[400718113,1767792638906,-1100.0,0.00015857,2]
[400718116,1767792638916,-3486.2600163,0.000159,2]
[400718118,1767792638926,-3486.2600163,0.000159,2]
[400718119,1767792638935,-3486.2600163,0.000159,2]
[400718121,1767792638945,-3486.2600163,0.000159,2]
[400718123,1767792638955,-3486.2600163,0.000159,2]
[400718124,1767792638966,-3486.2600163,0.000159,2]
[400718126,1767792638975,-166.66,0.00015928,2]
[400718128,1767792638985,-323.63,0.00015955,2]
[400718129,1767792638994,-1300.38846162,0.00015998,2]
[400718130,1767792639004,-95197.55965865,0.00016,2]
[400718131,1767792639014,-13379.92120999,0.00016,4]
[400718132,1767792639023,-377.51,0.00016063,2]
[400718133,1767792639033,-9999.99,0.00016063,2]
[400718134,1767792639042,-150.99,0.00016063,2]
[400718135,1767792639052,-9999.99,0.00016063,2]
[400718136,1767792639061,-999.99,0.00016063,2]
[400718137,1767792639071,-13963.16,0.00016063,2]
[400718138,1767792639080,-4271.27,0.00016098,2]
[400718139,1767792639091,-439.88513026,0.00016185,2]
[400718140,1767792639100,-500.0,0.00016195,2]
[400718141,1767792639110,-25649.89,0.00016195,2]
[400718142,1767792639120,-3687.07,0.00016195,2]
[400718143,1767792639130,-150.99,0.00016195,2]
[400718144,1767792639140,-299.99,0.00016195,4]
[400718145,1767792639149,-9999.99,0.00016195,2]
[400718146,1767792639159,-5000.0,0.000162,5]
[400718147,1767792639168,-1300.38846157,0.00016209,2]
[400718148,1767792639178,-166.66,0.0001625,2]
[400718149,1767792639187,-1000.0,0.00016253,2]
[400718150,1767792639197,-500.0,0.0001632,2]
[400718151,1767792639207,-39499.81,0.00016325,2]
[400718152,1767792639216,-511.54,0.00016364,2]
[400718153,1767792639226,-1300.38846157,0.00016421,2]
[400718154,1767792639236,-154.57,0.00016438,2]
[400718155,1767792639246,-4121.9,0.00016483,2]
[400718156,1767792639256,-166.66,0.00016572,2]
[400718157,1767792639266,-1300.38846157,0.00016632,2]
[400718158,1767792639276,-244.77,0.00016662,2]
[400718159,1767792639285,-1100.0,0.00016692,2]
[400718160,1767792639295,-11200.91,0.00016706,2]
[400718161,1767792639304,-652.54230562,0.0001672,2]
[400718162,1767792639314,-151.0,0.00016746,2]
[400718163,1767792639325,-151.0,0.00016746,2]
[400718164,1767792639335,-151.0,0.00016768,2]
[400718165,1767792639347,-151.0,0.00016768,2]
[400718166,1767792639357,-151.0,0.00016768,2]
[400718167,1767792639366,-151.0,0.00016768,2]
[400718168,1767792639376,-766.11,0.00016778,2]
[400718169,1767792639387,-14575.32,0.00016812,2]
[400718170,1767792639396,-1300.38846157,0.00016843,2]
[400718171,1767792639406,-1000.0,0.00016863,2]
[400718172,1767792639416,-1852.42,0.00016892,2]
[400718173,1767792639427,-166.66,0.00016894,2]
[400718174,1767792639437,-1202.01781127,0.00016925,2]
[400718175,1767792639447,-500.001539,0.00017,2]
[400718176,1767792639456,-1300.38846157,0.00017055,2]
[400718177,1767792639467,-1307.39,0.00017057,2]
[400718178,1767792639477,-250.0,0.00017084,2]
[400718179,1767792639487,-1202.01781127,0.00017088,2]
[400718180,1767792639496,-292.29410502,0.00017114,2]
[400718181,1767792639508,-250.0,0.00017114,2]
[400718182,1767792639518,-1655.36790437,0.00017114,2]
[400718183,1767792639527,-600.0,0.00017114,2]
[400718184,1767792639536,-152.10889041,0.00017114,2]
[400718185,1767792639546,-5000.0,0.00017114,2]
[400718186,1767792639556,-5000.0,0.00017114,2]
[400718187,1767792639565,-2500.0,0.00017114,2]
[400718188,1767792639574,-193.0,0.00017114,2]
[400718189,1767792639584,-600.0,0.00017114,2]
[400718190,1767792639593,-300.0,0.00017114,2]
[400718191,1767792639603,-300.0,0.00017114,2]
[400718192,1767792639612,-195.0,0.00017114,2]
[400718193,1767792639622,-250.0,0.00017114,2]
[400718194,1767792639632,-600.0,0.00017114,2]
[400718195,1767792639642,-600.0,0.00017114,2]
[400718196,1767792639652,-620.97403321,0.00017114,2]
[400718197,1767792639663,-300.0,0.00017114,2]
[400718198,1767792639672,-195.0,0.00017114,2]
[400718199,1767792639682,-853.09,0.00017158,2]
[400718200,1767792639692,-321.85,0.00017187,2]
[400718201,1767792639701,-1202.01781127,0.0001725,2]
[400718202,1767792639711,-1300.38846157,0.00017266,2]
[400718203,1767792639720,-420.0,0.00017339,2]
[400718204,1767792639729,-1680.0,0.00017372,2]
[400718205,1767792639739,-231.0,0.00017397,2]
[400718206,1767792639748,-1202.01781127,0.00017413,2]
[400718207,1767792639757,-853.09,0.00017432,2]
[400718208,1767792639767,-1000.0,0.00017472,2]
[400718209,1767792639777,-1300.38846157,0.00017477,2]
[400718210,1767792639787,-535.0,0.00017551,2]
[400718211,1767792639796,-1100.0,0.0001757,2]
[400718212,1767792639805,-1202.01781127,0.00017575,2]
[400718213,1767792639815,-500.0,0.00017593,2]
[400718214,1767792639824,-451.40062189,0.00017593,2]
[400718215,1767792639834,-537.05653843,0.00017593,2]
[400718216,1767792639844,-500.0,0.00017593,2]
[400718217,1767792639853,-501.43294385,0.00017594,2]
[400718218,1767792639863,-500.0,0.00017594,2]
[400718219,1767792639873,-500.0,0.00017594,2]
[400718220,1767792639883,-500.0,0.00017594,2]
[400718221,1767792639892,-500.0,0.00017594,2]
[400718222,1767792639901,-500.0,0.00017594,2]
[400718223,1767792639911,-500.0,0.00017594,2]
[400718224,1767792639920,-500.0,0.00017594,2]
[400718225,1767792639930,-500.0,0.00017594,2]
[400718226,1767792639940,-552.50710843,0.00017594,2]
[400718227,1767792639949,-500.0,0.00017594,2]
[400718228,1767792639958,-165.31618738,0.00017594,2]
[400718229,1767792639969,-500.93985952,0.00017594,2]
[400718230,1767792639978,-163.2920989,0.00017594,2]
[400718231,1767792639986,-500.0,0.00017594,2]
[400718232,1767792639995,-500.0,0.00017594,2]
[400718233,1767792640005,-500.0,0.00017594,2]
[400718234,1767792640014,-500.0,0.00017594,2]
[400718235,1767792640024,-162.472435,0.00017594,2]
[400718236,1767792640033,-500.0,0.00017594,2]
[400718237,1767792640042,-500.0,0.00017594,2]
[400718238,1767792640052,-500.0,0.00017594,2]
[400718239,1767792640061,-500.0,0.00017594,2]
[400718240,1767792640070,-500.0,0.00017594,2]
[400718241,1767792640080,-500.0,0.00017594,2]
[400718242,1767792640089,-500.0,0.00017594,2]
[400718243,1767792640098,-500.0,0.00017594,2]
[400718244,1767792640107,-500.0,0.00017594,2]
[400718245,1767792640116,-500.0,0.00017594,2]
[400718246,1767792640125,-485.97527636,0.00017594,2]
[400718247,1767792640135,-236.4594886,0.00017594,2]
[400718248,1767792640145,-4371.0,0.00017609,2]
[400718249,1767792640154,-535.0,0.00017623,2]
[400718250,1767792640164,-150.0,0.00017665,2]
[400718251,1767792640174,-5399.33492918,0.00017667,2]
[400718252,1767792640184,-535.0,0.0001768,2]
[400718253,1767792640194,-535.0,0.00017685,2]
[400718254,1767792640203,-1300.38846157,0.00017689,2]
[400718255,1767792640213,-5399.3349291,0.00017693,2]
[400718256,1767792640224,-535.0,0.00017703,2]
[400718257,1767792640233,-853.09,0.00017706,2]
[400718258,1767792640243,-300.0,0.00017709,2]
[400718259,1767792640252,-300.0,0.00017717,2]
[400718260,1767792640262,-189.05,0.00017717,2]
[400718261,1767792640271,-1000.0,0.00017717,2]
[400718262,1767792640281,-1000.0,0.00017717,2]
[400718263,1767792640290,-630.21,0.00017717,2]